Cogmind - Beta 14 @@@ ROGUE MODE // 2024.09.28 @ 12:13:57 Player: z_ Result: Escaped! Performance ------------- Evolutions (9) 4500 Regions Visited (17) 3400 Robots Destroyed (154) 770 Value Destroyed (3596) 3596 Prototype IDs (28) 560 Alien Tech Used (0) 0 Bonus (3918) 3918 TOTAL SCORE: 16744 Bonus ------- High Alert Combat Kills 118 Entered DSFs 500 Aligned with FarCom 300 Win 3000 Cogmind --------- Core Integrity 1505/1600 Matter 177/300 Energy 160/240 System Corruption 1% Temperature Cool (6) Movement Flying (45) Location To Epsilon Eridani Parts ------- > --- POWER (2) -------- Micro Nuclear Core Light Quantum Reactor > --- PROPULSION (8) --- Advanced Medium Treads Flight Unit Improved Flight Unit Improved Flight Unit Improved Flight Unit Field Propulsion Drive Impulse Thruster > --- UTILITY (13) ----- Structural Scanner Machine Analyzer Advanced Transmission Jammer ECM Suite Advanced Cloaking Device Hardened Light Armor Plating Hacking Suite Hacking Suite Hacking Suite Hacking Suite Hacking Suite System Shield System Shield > --- WEAPON (2) ------- Katana > --- INVENTORY (5) ---- Light Nuclear Core Enhanced Nova Cannon Peak State ------------ > --- POWER ------------ Micro Nuclear Core Light Quantum Reactor > --- PROPULSION ------- Advanced Medium Treads Flight Unit Improved Flight Unit Improved Flight Unit Improved Flight Unit Field Propulsion Drive Impulse Thruster Impulse Thruster > --- UTILITY ---------- Structural Scanner Machine Analyzer Advanced Transmission Jammer ECM Suite Advanced Cloaking Device Hardened Light Armor Plating Hacking Suite Hacking Suite Hacking Suite Hacking Suite Hacking Suite System Shield System Shield > --- WEAPON ----------- Enhanced Nova Cannon Katana > --- INVENTORY -------- Light Nuclear Core [Rating: 106] Favorites ----------- Power Cooled Ion Engine Engine Cooled Ion Engine Power Core Light Nuclear Core Reactor Light Quantum Reactor Propulsion Light Treads Treads Light Treads Wheel Wheel Flight Unit Improved Flight Unit Utility Huge Storage Unit Device Seismic Detector Storage Huge Storage Unit Processor Target Analyzer Hackware Hacking Suite Protection Hardened Light Armor Plating Weapon Improved Assault Rifle Energy Cannon Enhanced Nova Cannon Ballistic Gun Improved Assault Rifle Ballistic Cannon Flak Cannon Launcher Improved Grenade Launcher Slashing Weapon Katana Build | -11 -10 -10 -9 -9 -9 -8 -8 -7 -7 -7 -6 -5 -4 -3 -3 -2 -1 ------- Run | Yrd Mat Min Mat Min Exi Min Mat Fac Was Fac Fac Fac Fac Res DSF Res Acc Slots Evolved 18 | . . . 2 . . . 2 2 . . 2 2 2 2 . 2 2 Power 1 | . . . . . . . . . . . . . . 1 . . . Propulsion 6 | . . . 1 . . . . 1 . . 1 1 1 1 . . . Utility 11 | . . . 1 . . . 2 1 . . 1 1 1 . . 2 2 Weapon . | . . . . . . . . . . . . . . . . . . Parts Attached 144 | 8 13 1 31 8 . 1 42 3 . 9 4 1 9 1 1 6 6 Power 18 | 1 2 . 3 . . . 4 . . 1 . . 2 1 . 1 3 Engine 9 | 1 2 . 3 . . . 3 . . . . . . . . . . Core 6 | . . . . . . . 1 . . 1 . . 2 1 . . 1 Reactor 3 | . . . . . . . . . . . . . . . . 1 2 Propulsion 45 | 2 2 . 12 4 . . 14 1 . 3 1 . 4 . . 2 . Treads 27 | 2 2 . 11 4 . . 7 . . . . . . . . 1 . Leg . | . . . . . . . . . . . . . . . . . . Wheel 4 | . . . 1 . . . 3 . . . . . . . . . . Hover . | . . . . . . . . . . . . . . . . . . Flight 14 | . . . . . . . 4 1 . 3 1 . 4 . . 1 . Utility 34 | 2 2 . 3 . . . 10 1 . 4 3 1 2 . 1 3 2 Device 10 | 1 1 . 2 . . . . . . . 1 . 1 . 1 2 1 Storage 2 | 1 1 . . . . . . . . . . . . . . . . Processor 4 | . . . 1 . . . 1 1 . 1 . . . . . . . Hackware 8 | . . . . . . . 3 . . . 1 1 1 . . 1 1 Protection 10 | . . . . . . . 6 . . 3 1 . . . . . . Artifact . | . . . . . . . . . . . . . . . . . . Weapon 47 | 3 7 1 13 4 . 1 14 1 . 1 . . 1 . . . 1 Energy Gun . | . . . . . . . . . . . . . . . . . . Energy Cannon 1 | . . . . . . . . . . . . . . . . . 1 Ballistic Gun 30 | 3 6 . 10 3 . 1 7 . . . . . . . . . . Ballistic Cannon 1 | . . . . . . . 1 . . . . . . . . . . Launcher 12 | . 1 1 3 1 . . 3 1 . 1 . . 1 . . . . Special Weapon . | . . . . . . . . . . . . . . . . . . Impact Weapon . | . . . . . . . . . . . . . . . . . . Slashing Weapon 3 | . . . . . . . 3 . . . . . . . . . . Piercing Weapon . | . . . . . . . . . . . . . . . . . . Special Melee Weapon . | . . . . . . . . . . . . . . . . . . Unidentified Prototypes 5 | . . . 2 . . . 3 . . . . . . . . . . Parts Lost 16 | . 1 . . 4 . . 7 . . . . . . . 2 1 1 Power 2 | . 1 . . . . . 1 . . . . . . . . . . Propulsion 9 | . . . . 4 . . 3 . . . . . . . 1 . 1 Utility 3 | . . . . . . . 2 . . . . . . . 1 . . Weapon 2 | . . . . . . . 1 . . . . . . . . 1 . Highest Loss Streak 3 | . 1 . . 2 . . 3 . . . . . . . 2 1 1 To Critical Strikes . | . . . . . . . . . . . . . . . . . . Average Slot Usage (%) 97 | . 99 100 99 99 100 92 91 99 100 99 96 92 90 95 93 92 96 Engine 9 | . 13 14 11 11 11 11 7 7 7 2 . . . . . . . Core 1 | . . . . . . . . . . 4 6 5 5 9 9 6 4 Treads 24 | . 28 28 32 32 33 33 22 . . . . . . . . 2 4 Flight 5 | . . . . . . . . 30 30 29 29 29 27 33 31 28 28 Device 7 | . 14 14 11 11 11 4 . . . . . . 3 4 5 13 16 Storage 8 | . 14 14 11 11 11 11 8 . . . . . . . . . . Processor 10 | . . . 10 11 11 11 16 14 15 15 13 11 6 4 4 4 4 Hackware 4 | . . . . . . . . 23 23 23 26 27 31 28 26 26 28 Protection 3 | . . . . . . . 13 7 7 6 5 5 5 4 4 4 4 Ballistic Gun 17 | . 27 28 21 21 22 22 15 . . . . . . . . . . Launcher 1 | . . . . . . . . 6 7 7 6 5 5 4 4 1 . Slashing Weapon 1 | . . . . . . . 1 7 7 7 6 5 5 4 4 4 4 Peak Build Rating 106 | 7 8 8 21 20 20 22 35 36 37 40 49 53 65 67 68 93 106 Average Rating 25 | 5 7 8 17 19 20 21 29 35 36 39 45 52 53 67 66 83 97 On Entrance 35 | . 7 8 8 19 20 20 22 30 36 37 40 49 53 65 67 67 93 Naked Turns . | . . . . . . . . . . . . . . . . . . Heaviest Build 106 | 13 88 89 95 95 95 96 106 16 16 18 18 18 20 25 26 31 33 Greatest Support 60 | 40 40 40 60 60 60 60 60 19 19 19 25 25 39 39 39 40 40 Greatest Overweight (x) 29 | . 2 2 29 1 1 1 10 . . 1 . . 1 . 2 2 . Average Overweight (x) . | . . 2 1 1 1 1 3 . . . . . . . . . . Largest Inventory Capacity 25 | 8 25 25 25 25 25 25 25 5 5 5 5 5 5 5 5 5 5 Average Capacity 19 | 7 11 25 25 25 25 25 24 5 5 5 5 5 5 5 5 5 5 Most Carried 25 | 7 10 10 25 25 24 25 25 4 4 5 4 5 5 3 5 3 2 Average Carried 18 | 4 7 10 23 24 23 24 24 2 3 4 3 4 4 3 3 2 1 Final Capacity 25 | 8 25 25 25 25 25 25 5 5 5 5 5 5 5 5 5 5 5 Final Carried 25 | 7 10 10 25 23 24 25 5 3 4 5 3 5 4 3 4 3 2 Class Distribution -------------------- 45% | Mutant 36% | Scavenger-Mutant 12% | Hacker-Scout 3% | Wizard-Ninja Dominant Class ---------------- Mutant | -10/Materials Mutant | -10/Mines Scavenger-Mutant | -9/Materials Mutant | -9/Mines Mutant | -9/Exiles Mutant | -8/Mines Scavenger-Mutant | -8/Materials Hacker-Scout | -7/Factory Hacker-Scout | -7/Waste Hacker-Scout | -7/Factory Hacker-Scout | -6/Factory Hacker-Scout | -5/Factory Wizard-Scout | -4/Factory Wizard-Scout | -3/Research Wizard-Assassin | -3/DSF Wizard-Ninja | -2/Research Wizard-Ninja | -1/Access Resources | -11 -10 -10 -9 -9 -9 -8 -8 -7 -7 -7 -6 -5 -4 -3 -3 -2 -1 ----------- Run | Yrd Mat Min Mat Min Exi Min Mat Fac Was Fac Fac Fac Fac Res DSF Res Acc Matter Collected 3908 | 263 462 38 1160 414 . 45 1184 50 . 24 . 116 32 . . 100 20 Remotely . | . . . . . . . . . . . . . . . . . . Salvage Created 4800 | 34 596 . 1534 652 . 122 1432 . . 74 20 259 57 . . . 20 Parts 361 | 6 39 . 133 53 . 10 73 . . 2 1 27 11 . . . 6 Haulers Intercepted 9 | . 2 . 4 . . . 2 . . 1 . . . . . . . Recyclers Shooed 8 | . . . 4 . . . 4 . . . . . . . . . . Parts Field Recycled . | . . . . . . . . . . . . . . . . . . Retrieved Matter . | . . . . . . . . . . . . . . . . . . Parts Self-Destructed . | . . . . . . . . . . . . . . . . . . Prevented . | . . . . . . . . . . . . . . . . . . Kills | -11 -10 -10 -9 -9 -9 -8 -8 -7 -7 -7 -6 -5 -4 -3 -3 -2 -1 ------- Run | Yrd Mat Min Mat Min Exi Min Mat Fac Was Fac Fac Fac Fac Res DSF Res Acc Combat Hostiles Destroyed 97 | . 12 . 39 24 . 1 20 . . . . 1 . . . . . Melee 2 | . . . . . . . 1 . . . . 1 . . . . . Guns 74 | . 11 . 31 14 . 1 17 . . . . . . . . . . AOE 21 | . 1 . 8 10 . . 2 . . . . . . . . . . Classes Destroyed 13 | 1 5 . 5 . . 2 . . . . . . . . . . . Worker 9 | . . . 1 . . . 5 . . . . 2 1 . . . . Builder 8 | . . . 1 . . . 3 . . . . 2 2 . . . . Tunneler 5 | 2 . . 1 1 . 1 . . . . . . . . . . . Hauler 9 | . 2 . 4 . . . 2 . . 1 . . . . . . . Recycler 5 | . . . . . . 1 4 . . . . . . . . . . Operator 12 | . 1 . 4 . . . 1 . . 1 1 3 . . . . 1 Watcher 9 | . 3 . 5 . . . . . . . . 1 . . . . . Swarmer 32 | . 3 . 16 10 . . 3 . . . . . . . . . . Grunt 44 | . 9 . 12 14 . . 9 . . . . . . . . . . Brawler 1 | . . . 1 . . . . . . . . . . . . . . Protector 2 | . . . 1 . . . . . . . . 1 . . . . . Sentry 13 | . . . 9 . . . 4 . . . . . . . . . . Hunter 5 | . . . . . . 1 4 . . . . . . . . . . Best Kill Streak 11 | 2 3 . 6 9 . 1 11 . . 1 1 8 2 . . . 1 Combat Bots Only 8 | . 3 . 5 8 . 1 4 . . . . 1 . . . . . Max Kills in Single Turn 3 | 1 1 . 3 3 . 1 3 . . 1 1 1 1 . . . 1 Gunslinging 1 | . . . . . . . 1 . . . . . . . . . . Exploded 3 | . 1 . 3 3 . . 1 . . . . . . . . . . Melee 1 | . . . . . . . 1 . . . . 1 . . . . . Uniques/NPCs Destroyed . | . . . . . . . . . . . . . . . . . . Combat | -11 -10 -10 -9 -9 -9 -8 -8 -7 -7 -7 -6 -5 -4 -3 -3 -2 -1 -------- Run | Yrd Mat Min Mat Min Exi Min Mat Fac Was Fac Fac Fac Fac Res DSF Res Acc Hostile Shots Fired 489 | . 74 4 131 72 . 8 151 . . . . . 5 . 23 5 16 Missed 155 | . 15 3 42 19 . 3 48 . . . . . 2 . 11 3 9 Damage Taken 4566 | . 667 14 1143 573 . 77 1493 . . . . . 42 . 344 51 162 Core 984 | . 178 . 173 94 . . 202 . . . . . . . 242 . 95 Absorbed by Shields 73 | . . . . . . . . . . . . . . . 73 . . Redirected to Shielding 31 | . . . . . . . 31 . . . . . . . . . . Regen/Repaired (Parts) 176 | . 98 . . . . . . . . . 78 . . . . . . Core Remaining (%) 81 | 100 . 28 . . . 33 63 . . 100 100 100 100 . 81 100 94 Volleys Fired 334 | 2 66 1 114 39 . 5 102 . . . . . . . . 5 . Largest 2 | 2 2 1 2 2 . 2 2 . . . . . . . . 1 . Hottest 60 | 40 40 30 60 46 . 46 51 . . . . . . . . 36 . Shots Fired 648 | 4 131 1 227 69 . 10 201 . . . . . . . . 5 . Gun 619 | 4 130 . 216 60 . 10 199 . . . . . . . . . . Cannon . | . . . . . . . . . . . . . . . . . . Launcher 29 | . 1 1 11 9 . . 2 . . . . . . . . 5 . Special . | . . . . . . . . . . . . . . . . . . Kinetic 619 | 4 130 . 216 60 . 10 199 . . . . . . . . . . Thermal . | . . . . . . . . . . . . . . . . . . Explosive 29 | . 1 1 11 9 . . 2 . . . . . . . . 5 . Electromagnetic . | . . . . . . . . . . . . . . . . . . Robot Hit Streak 13 | 2 12 . 13 7 . 4 13 . . . . . . . . . . Robot Miss Streak 6 | . 3 . 5 6 . 2 5 . . . . . . . . . . Penetration Max 1 | . . . . . . . 1 . . . . . . . . . . Secondary Targets 10 | . 1 . 3 4 . . 2 . . . . . . . . . . Max Gunslinging Chain 1 | . 1 . 1 1 . . 1 . . . . . . . . . . Shots Hit Robots 447 | 2 91 . 141 36 . 6 140 . . 12 4 10 3 . . 1 1 Core Hits 231 | 2 34 . 84 31 . 5 61 . . 2 1 6 3 . . 1 1 Critical Kills 3 | . . . . 2 . . 1 . . . . . . . . . . Critical Parts Destroyed 10 | . 1 . 5 2 . . 2 . . . . . . . . . . Critical Strikes 15 | . 1 . 5 4 . . 4 . . . . . . . . 1 . Destroy 13 | . 1 . 5 4 . . 3 . . . . . . . . . . Sever 2 | . . . . . . . 1 . . . . . . . . 1 . Melee Attacks 103 | . . . . . . . 14 5 . 21 10 23 13 . . 13 4 Impact . | . . . . . . . . . . . . . . . . . . Slashing 103 | . . . . . . . 14 5 . 21 10 23 13 . . 13 4 Piercing . | . . . . . . . . . . . . . . . . . . Sneak Attacks 14 | . . . . . . . 1 . . 2 2 6 3 . . . . Combat Hostiles 2 | . . . . . . . 1 . . . . 1 . . . . . Follow-up Attacks . | . . . . . . . . . . . . . . . . . . Damage Inflicted 10135 | 24 1195 . 2878 1112 . 100 3152 . . 510 257 621 205 . . 38 43 Guns 5958 | 24 1107 . 2015 594 . 66 2152 . . . . . . . . . . Cannons . | . . . . . . . . . . . . . . . . . . Explosions 2046 | . 86 . 810 502 . . 648 . . . . . . . . . . Melee 2020 | . . . . . . . 346 . . 510 257 621 205 . . 38 43 Ramming 111 | . 2 . 53 16 . 34 6 . . . . . . . . . . Kinetic 5958 | 24 1107 . 2015 594 . 66 2152 . . . . . . . . . . Thermal . | . . . . . . . . . . . . . . . . . . Explosive 2046 | . 86 . 810 502 . . 648 . . . . . . . . . . Electromagnetic . | . . . . . . . . . . . . . . . . . . Impact . | . . . . . . . . . . . . . . . . . . Slashing 2020 | . . . . . . . 346 . . 510 257 621 205 . . 38 43 Piercing . | . . . . . . . . . . . . . . . . . . Highest Corruption 1 | . . . . . . . . . . . . . . . . . 1 Average Corruption 1 | . . . . . . . . . . . . . . . . . 1 Corruption Purged . | . . . . . . . . . . . . . . . . . . Corruption Blocked . | . . . . . . . . . . . . . . . . . . Overload Shots . | . . . . . . . . . . . . . . . . . . Overflow Damage 334 | . . . 3 2 . . 30 . . 103 56 140 . . . . . Projectiles . | . . . . . . . . . . . . . . . . . . Explosions 35 | . . . 3 2 . . 30 . . . . . . . . . . Melee 299 | . . . . . . . . . . 103 56 140 . . . . . Knockbacks 2 | . . . 1 1 . . . . . . . . . . . . . Impact 2 | . . . 1 1 . . . . . . . . . . . . . Kinetic . | . . . . . . . . . . . . . . . . . . Secondary . | . . . . . . . . . . . . . . . . . . Self-Inflicted Damage 112 | . . . 87 23 . . 2 . . . . . . . . . . Shots 7 | . . . 5 2 . . . . . . . . . . . . . Rammed 19 | . 1 . 8 6 . 3 1 . . . . . . . . . . Targets Rammed 20 | . 1 . 8 6 . 3 2 . . . . . . . . . . Kicked . | . . . . . . . . . . . . . . . . . . Crushed 1 | . . . . . . . 1 . . . . . . . . . . Highest Temperature 303 | . 12 4 23 16 . . 33 . . . 17 7 138 303 9 40 . Average Temperature 24 | . 6 4 4 4 . . 11 . . . 6 4 61 166 5 8 . Received Heat Transfer 1318 | . 324 9 354 240 . . 351 . . . . . . . 40 . . Siege Activations . | . . . . . . . . . . . . . . . . . . Robots Corrupted . | . . . . . . . . . . . . . . . . . . Combat Hostiles . | . . . . . . . . . . . . . . . . . . Parts Fried . | . . . . . . . . . . . . . . . . . . Impact Corruptions . | . . . . . . . . . . . . . . . . . . Robots Melted . | . . . . . . . . . . . . . . . . . . Combat Hostiles . | . . . . . . . . . . . . . . . . . . Parts Melted . | . . . . . . . . . . . . . . . . . . Heat Transferred . | . . . . . . . . . . . . . . . . . . Parts Sabotaged . | . . . . . . . . . . . . . . . . . . Parts Stolen . | . . . . . . . . . . . . . . . . . . Parts Stripped . | . . . . . . . . . . . . . . . . . . Power Chain Reactions . | . . . . . . . . . . . . . . . . . . Alert | -11 -10 -10 -9 -9 -9 -8 -8 -7 -7 -7 -6 -5 -4 -3 -3 -2 -1 ------- Run | Yrd Mat Min Mat Min Exi Min Mat Fac Was Fac Fac Fac Fac Res DSF Res Acc Peak Influence 790 | 10 171 20 790 408 . 30 361 134 61 72 113 113 55 18 28 147 68 Initial 307 | . 6 . 7 307 . . 3 97 46 42 . 55 . 18 13 4 . Average 157 | 1 49 . 263 317 . 10 171 108 52 25 51 60 34 18 12 49 52 Maximum Alert Level 3 | . . . 3 2 . . 1 . . . . . . . . . . Low Security (%) 62 | 100 100 100 42 2 . 100 50 100 100 100 100 100 100 100 100 100 100 Level 1 28 | . . . 34 75 . . 49 . . . . . . . . . . Level 2 7 | . . . 19 21 . . . . . . . . . . . . . Level 3 . | . . . 3 . . . . . . . . . . . . . . Level 4 . | . . . . . . . . . . . . . . . . . . Level 5 . | . . . . . . . . . . . . . . . . . . High Security . | . . . . . . . . . . . . . . . . . . Max Security . | . . . . . . . . . . . . . . . . . . Squads Dispatched 18 | . 3 . 4 . . . 3 . . 2 1 . 1 1 1 2 . Investigation 5 | . 2 . . . . . 2 . . . . . 1 . . . . Extermination 3 | . . . . . . . . . . 1 1 . . . . 1 . Reinforcement 9 | . 1 . 3 . . . 1 . . 1 . . . 1 1 1 . Assault 1 | . . . 1 . . . . . . . . . . . . . . Garrison . | . . . . . . . . . . . . . . . . . . Intercept . | . . . . . . . . . . . . . . . . . . Searches Triggered . | . . . . . . . . . . . . . . . . . . Construction Impeded . | . . . . . . . . . . . . . . . . . . Haulers Reinforced . | . . . . . . . . . . . . . . . . . . Active Scanning Responses . | . . . . . . . . . . . . . . . . . . Cargo Convoy Interrupts . | . . . . . . . . . . . . . . . . . . Stealth | -11 -10 -10 -9 -9 -9 -8 -8 -7 -7 -7 -6 -5 -4 -3 -3 -2 -1 --------- Run | Yrd Mat Min Mat Min Exi Min Mat Fac Was Fac Fac Fac Fac Res DSF Res Acc Distress Signals 15 | . . . 6 2 . . 5 . . . . 1 . . . 1 . Communications Jammed 25 | . . . . . . . . . . . . . . . . 6 19 Distress Signals 25 | . . . . . . . . . . . . . . . . 6 19 Times Spotted 189 | . 20 2 58 25 . 1 39 . 6 2 4 5 7 . 4 9 7 Peak Tracking Total 10 | . 3 . 5 5 . 1 7 . 6 1 3 5 9 . 3 10 5 Tactical Retreats 11 | . 1 . 2 2 . . . . . . 1 . . . 1 4 . Traps | -11 -10 -10 -9 -9 -9 -8 -8 -7 -7 -7 -6 -5 -4 -3 -3 -2 -1 ------- Run | Yrd Mat Min Mat Min Exi Min Mat Fac Was Fac Fac Fac Fac Res DSF Res Acc Traps Triggered 12 | . 1 . 3 . . . . 1 . 2 1 . 1 1 2 . . Indirectly . | . . . . . . . . . . . . . . . . . . Trap Hack Attempts . | . . . . . . . . . . . . . . . . . . Triggered . | . . . . . . . . . . . . . . . . . . Disarmed . | . . . . . . . . . . . . . . . . . . Reprogrammed . | . . . . . . . . . . . . . . . . . . Reused . | . . . . . . . . . . . . . . . . . . Traps Extracted . | . . . . . . . . . . . . . . . . . . Installed . | . . . . . . . . . . . . . . . . . . Triggered . | . . . . . . . . . . . . . . . . . . Machines | -11 -10 -10 -9 -9 -9 -8 -8 -7 -7 -7 -6 -5 -4 -3 -3 -2 -1 ---------- Run | Yrd Mat Min Mat Min Exi Min Mat Fac Was Fac Fac Fac Fac Res DSF Res Acc Machines Disabled 12 | . . . 4 . . . 5 . . . 2 1 . . . . . Max in Single Turn 2 | . . . 1 . . . 2 . . . 1 1 . . . . . Garrison Access 6 | . . . . . . . . 1 . 1 . 1 . . . 1 2 Machines Repaired . | . . . . . . . . . . . . . . . . . . Machines Dismantled . | . . . . . . . . . . . . . . . . . . Machines Sabotaged . | . . . . . . . . . . . . . . . . . . Overloaded Fab Kills . | . . . . . . . . . . . . . . . . . . Hacking | -11 -10 -10 -9 -9 -9 -8 -8 -7 -7 -7 -6 -5 -4 -3 -3 -2 -1 --------- Run | Yrd Mat Min Mat Min Exi Min Mat Fac Was Fac Fac Fac Fac Res DSF Res Acc Machines Accessed 52 | . 8 . 3 . 1 . 6 7 . 2 5 7 2 1 . 5 5 Terminals 36 | . 6 . 3 . . . 6 5 . . 3 4 2 1 . 4 2 Fabricators 5 | . . . . . . . . . . 1 1 2 . . . . 1 Repair Stations 2 | . 1 . . . . . . . . . 1 . . . . . . Recycling Units 1 | . 1 . . . . . . . . . . . . . . . . Scanalyzers . | . . . . . . . . . . . . . . . . . . Garrison Access 7 | . . . . . . . . 2 . 1 . 1 . . . 1 2 Total Hacks 124 | . 21 . 8 . 1 . 15 12 . 2 16 18 8 1 . 13 9 Successful 64 | . 10 . 5 . 1 . 2 7 . 2 7 10 3 1 . 8 8 Failed 60 | . 11 . 3 . . . 13 5 . . 9 8 5 . . 5 1 Catastrophic 11 | . 1 . . . . . 5 1 . . . . 3 . . 1 . Database Lockouts . | . . . . . . . . . . . . . . . . . . Manual 87 | . 14 . 8 . 1 . 15 5 . . 12 11 8 . . 10 3 Terminals 98 | . 13 . 8 . . . 15 8 . . 13 15 8 1 . 12 5 Fabricators 6 | . . . . . . . . . . 1 1 2 . . . . 2 Repair Stations 5 | . 3 . . . . . . . . . 2 . . . . . . Recycling Units 5 | . 5 . . . . . . . . . . . . . . . . Scanalyzers . | . . . . . . . . . . . . . . . . . . Garrison Access 9 | . . . . . . . . 4 . 1 . 1 . . . 1 2 Terminal Hacks 30 | . 2 . 2 . 1 . 1 5 . . 2 4 1 1 . 7 4 Record 4 | . . . . . . . . . . . . 1 . . . 2 1 Robot Analysis 3 | . 2 . 1 . . . . . . . . . . . . . . Open Door 1 | . . . . . . . . . . . . . . . . . 1 Open DSF 4 | . . . . . . . . 2 . . 1 . . 1 . . . Level Access Points 7 | . . . . . . . 1 1 . . 1 1 1 . . 1 1 Machine Index 1 | . . . . . . . . . . . . . . . . . 1 Unreport Threat 6 | . . . . . . . . . . . . 2 . . . 4 . Locate Traps 1 | . . . . . . . . 1 . . . . . . . . . Hauler Manifests 1 | . . . 1 . . . . . . . . . . . . . . Zone Layout 1 | . . . . . . . . 1 . . . . . . . . . Derelict Proto ID Bank 1 | . . . . . 1 . . . . . . . . . . . . Fabricator Hacks 5 | . . . . . . . . . . 1 1 2 . . . . 1 Network Status 4 | . . . . . . . . . . 1 1 1 . . . . 1 Build 1 | . . . . . . . . . . . . 1 . . . . . Repair Station Hacks 4 | . 2 . . . . . . . . . 2 . . . . . . Scan Component 2 | . 1 . . . . . . . . . 1 . . . . . . Repair 2 | . 1 . . . . . . . . . 1 . . . . . . Recycling Unit Hacks 3 | . 3 . . . . . . . . . . . . . . . . Retrieve Matter 2 | . 2 . . . . . . . . . . . . . . . . Retrieve Components 1 | . 1 . . . . . . . . . . . . . . . . Scanalyzer . | . . . . . . . . . . . . . . . . . . Garrison Access Hacks 6 | . . . . . . . . 1 . 1 . 1 . . . 1 2 Seal Access 6 | . . . . . . . . 1 . 1 . 1 . . . 1 2 Unauthorized Hacks 16 | . 3 . 3 . . . 1 1 . . 2 3 2 . . . 1 Terminals 16 | . 3 . 3 . . . 1 1 . . 2 3 2 . . . 1 Track 2 | . 1 . 1 . . . . . . . . . . . . . . Botnet 12 | . 1 . 1 . . . 1 1 . . 2 3 2 . . . 1 Operators 2 | . 1 . 1 . . . . . . . . . . . . . . Fabricators . | . . . . . . . . . . . . . . . . . . Repair Stations . | . . . . . . . . . . . . . . . . . . Recycling Units . | . . . . . . . . . . . . . . . . . . Scanalyzers . | . . . . . . . . . . . . . . . . . . Garrison Access . | . . . . . . . . . . . . . . . . . . Data Cores Recovered 4 | . . . 1 . . . . . . . . 2 . . . . 1 Used 1 | . . . . . . . . . . . . 1 . . . . . Hacking Detections 32 | . 6 . 2 . . . 6 4 . 1 3 3 2 . . 3 2 Full Trace Events 7 | . 3 . 1 . . . 2 . . . . . 1 . . . . Feedback Events . | . . . . . . . . . . . . . . . . . . Feedback Blocked . | . . . . . . . . . . . . . . . . . . Robot Schematics Acquired . | . . . . . . . . . . . . . . . . . . Robots Built . | . . . . . . . . . . . . . . . . . . Authchips . | . . . . . . . . . . . . . . . . . . Time . | . . . . . . . . . . . . . . . . . . Total Robot Build Rating . | . . . . . . . . . . . . . . . . . . Part Schematics Acquired . | . . . . . . . . . . . . . . . . . . Parts Built . | . . . . . . . . . . . . . . . . . . Authchips . | . . . . . . . . . . . . . . . . . . Time 128 | . . . . . . . . . . . . 128 . . . . . Total Part Build Rating . | . . . . . . . . . . . . . . . . . . Parts Repaired 2 | . 1 . . . . . . . . . 1 . . . . . . Time 88 | . 26 . . . . . . . . . 62 . . . . . . Parts Recycled . | . . . . . . . . . . . . . . . . . . Recycled Matter . | . . . . . . . . . . . . . . . . . . Retrieved Matter . | . . . . . . . . . . . . . . . . . . Retrieved Components 3 | . 3 . . . . . . . . . . . . . . . . Parts Scanalyzed . | . . . . . . . . . . . . . . . . . . Part Schematics Acquired . | . . . . . . . . . . . . . . . . . . Parts Damaged . | . . . . . . . . . . . . . . . . . . Bothacking | -11 -10 -10 -9 -9 -9 -8 -8 -7 -7 -7 -6 -5 -4 -3 -3 -2 -1 ------------ Run | Yrd Mat Min Mat Min Exi Min Mat Fac Was Fac Fac Fac Fac Res DSF Res Acc Used RIF Installer . | . . . . . . . . . . . . . . . . . . Robots Hacked . | . . . . . . . . . . . . . . . . . . Non-combat . | . . . . . . . . . . . . . . . . . . Combat . | . . . . . . . . . . . . . . . . . . Robot Hacks Applied . | . . . . . . . . . . . . . . . . . . Relay Couplers Released . | . . . . . . . . . . . . . . . . . . Fabnet Peak Effective % . | . . . . . . . . . . . . . . . . . . Robots Rewired 2 | . . . . . . . . . . . . 1 1 . . . . Allies Hacked . | . . . . . . . . . . . . . . . . . . Hacks Repelled . | . . . . . . . . . . . . . . . . . . Allies | -11 -10 -10 -9 -9 -9 -8 -8 -7 -7 -7 -6 -5 -4 -3 -3 -2 -1 -------- Run | Yrd Mat Min Mat Min Exi Min Mat Fac Was Fac Fac Fac Fac Res DSF Res Acc Total Allies 5 | . . . . . . . . . . . . 4 1 . . . . Largest Group 4 | . . . . . . . . . . . . 4 1 . . . . Highest-Rated Group 134 | . . . . . . . . . . . . 134 47 . . . . Highest-Rated Ally 47 | . . . . . . . . . . . . 41 47 . . . . Total Orders . | . . . . . . . . . . . . . . . . . . Ally Attacks 6 | . . . . . . . . . . . . 1 5 . . . . Total Damage 161 | . . . . . . . . . . . . 22 139 . . . . Kills . | . . . . . . . . . . . . . . . . . . Allies Corrupted . | . . . . . . . . . . . . . . . . . . Allies Melted . | . . . . . . . . . . . . . . . . . . Intel | -11 -10 -10 -9 -9 -9 -8 -8 -7 -7 -7 -6 -5 -4 -3 -3 -2 -1 ------- Run | Yrd Mat Min Mat Min Exi Min Mat Fac Was Fac Fac Fac Fac Res DSF Res Acc Robot Analysis Total 3 | . 2 . 1 . . . . . . . . . . . . . . Derelict Logs Recovered 1 | . . . . 1 . . . . . . . . . . . . . Drone Launches . | . . . . . . . . . . . . . . . . . . Drone Recoveries . | . . . . . . . . . . . . . . . . . . Exploration | -11 -10 -10 -9 -9 -9 -8 -8 -7 -7 -7 -6 -5 -4 -3 -3 -2 -1 ------------- Run | Yrd Mat Min Mat Min Exi Min Mat Fac Was Fac Fac Fac Fac Res DSF Res Acc Turns Passed 13212 | 124 1614 119 3012 1843 515 1093 2498 164 44 992 260 184 141 40 70 380 119 Spaces Moved 7185 | 63 694 37 1049 552 215 445 896 475 137 291 517 479 352 113 143 519 208 Core 3 | 2 . . 1 . . . . . . . . . . . . . . Treads 3573 | 61 694 37 993 552 215 445 576 . . . . . . . . . . Legs . | . . . . . . . . . . . . . . . . . . Wheels 349 | . . . 55 . . . 294 . . . . . . . . . . Hover . | . . . . . . . . . . . . . . . . . . Flight 3260 | . . . . . . . 26 475 137 291 517 479 352 113 143 519 208 Fastest Speed 15 | 50 160 320 175 240 240 240 34 31 31 31 20 20 15 15 15 25 42 Average Speed 139 | 156 186 320 237 240 240 240 232 31 31 31 28 24 24 20 37 43 42 Slowest Speed 1500 | 160 320 320 1500 240 240 240 480 31 31 107 31 25 107 25 139 187 45 Overloaded Moves 21 | . . . . . . . . . . . 2 2 4 1 12 . . Propulsion Burnouts . | . . . . . . . . . . . . . . . . . . Robots Hopped 6 | . . . . . . . . . . . 1 1 3 . . . 1 Cave-ins Triggered . | . . . . . . . . . . . . . . . . . . Exploration Rate (%) 42 | 5 97 13 71 92 61 95 59 19 80 5 11 18 11 3 92 19 7 Regions Visited 17 Branch Regions 4 Pre-discovered Areas . | . . . . . . . . . . . . . . . . . . Known Exits Taken 7 | . . . . . . . 1 . . 1 1 1 1 1 . 1 . Unknown Exits Taken 7 | 1 1 1 1 1 1 1 . . . . . . . . . . . Scrap Searched 4 | . . 1 . 2 . 1 . . . . . . . . . . . Spaces Dug 102 | . . . . 10 . . 2 5 . 3 4 6 10 . . 61 1 Terrain Destroyed 248 | . 12 3 53 63 . . 12 5 . 3 4 6 10 . . 76 1 Melee 41 | . . . . . . . 2 5 . 3 4 6 10 . . 10 1 Projectile . | . . . . . . . . . . . . . . . . . . AOE 207 | . 12 3 53 63 . . 10 . . . . . . . . 66 . Terrain Rammed . | . . . . . . . . . . . . . . . . . . Walls Destroyed . | . . . . . . . . . . . . . . . . . . Machines Disabled . | . . . . . . . . . . . . . . . . . . Actions | -11 -10 -10 -9 -9 -9 -8 -8 -7 -7 -7 -6 -5 -4 -3 -3 -2 -1 --------- Run | Yrd Mat Min Mat Min Exi Min Mat Fac Was Fac Fac Fac Fac Res DSF Res Acc Total 9598 | 81 892 38 1333 999 215 460 1144 484 137 1154 610 507 381 128 158 646 231 Wait 1655 | 2 107 . 89 389 . . 43 . . 832 63 . . 9 5 104 12 Move 7156 | 62 693 36 1048 551 214 444 895 475 136 290 514 476 345 112 142 518 205 Hop 6 | . . . . . . . . . . . 1 1 3 . . . 1 Pick Up 55 | 7 4 . 21 4 1 3 6 1 1 1 . 3 1 . 2 . . Fast Attach 46 | 7 3 . 4 . . . 13 . . 6 1 1 6 . 1 2 2 Attach 29 | . . . 1 4 . . 12 3 . . 1 . 2 1 . 2 3 Detach 3 | . . . . . . . 2 . . . . . . . . . 1 Swap 70 | 1 10 1 26 4 . 1 18 . . 3 2 . 1 . . 2 1 Drop 79 | . 8 . 22 2 . 4 37 . . 1 . 1 1 . 1 . 2 Fire 334 | 2 66 1 114 39 . 5 102 . . . . . . . . 5 . Melee 103 | . . . . . . . 14 5 . 21 10 23 13 . . 13 4 Ram 1 | . . . . . . . 1 . . . . . . . . . . Kick . | . . . . . . . . . . . . . . . . . . Crush 19 | . 1 . 8 6 . 3 1 . . . . . . . . . . Escape Stasis 31 | . . . . . . . . . . . 18 . . 6 7 . . Rewire 11 | . . . . . . . . . . . . 2 9 . . . . Trap . | . . . . . . . . . . . . . . . . . . Miscellaneous . | . . . . . . . . . . . . . . . . . . Route ------- -11/Scrapyard -10/Materials (discovered 5 exits: *Mat x3 / [*Min x2]) -10/Mines -9/Materials (discovered 3 exits: *Mat x2 / [*Min]) -9/Mines (discovered 4 exits: *Mat x2 / *Exi / [*Zio]) -9/Exiles -8/Mines -8/Materials (discovered 3 exits: *Fac x3) -7/Factory (discovered 7 exits: Fac x4 / [*Low] / DSF / DSF) -7/Waste -7/Factory -6/Factory (discovered 4 exits: *Fac x4) -5/Factory (discovered 5 exits: *Fac x4 / [*Upp]) -4/Factory (discovered 4 exits: *Res x4) -3/Research -3/DSF -2/Research (discovered 3 exits: *Acc x3) -1/Access To Epsilon Eridani History --------- Turn | Location | Event 12 | -11/Scrapyard | Discovered new exit (range 15) 125 | -11/Scrapyard | Entered Materials 300 | -10/Materials | Build established: Mutant 699 | -10/Materials | Discovered new exit (range 16) 714 | -10/Materials | Core integrity fell below 50% 892 | -10/Materials | Discovered new exit (range 11) 996 | -10/Materials | Discovered new exit (range 16) 1110 | -10/Materials | Repaired Lgt. Treads 1517 | -10/Materials | Discovered new exit (range 16) 1698 | -10/Materials | Discovered new exit (range 6) 1739 | -10/Materials | Entered Mines 1826 | -10/Mines | Discovered new exit (range 8) 1858 | -10/Mines | Entered Materials 1858 | -9/Materials | Evolved 2 slots: Propulsion x1, Utility x1 2543 | -9/Materials | Build established: Scavenger-Mutant 2573 | -9/Materials | Discovered new exit (range 5) 3301 | -9/Materials | Discovered new exit (range 10) 3715 | -9/Materials | Discovered new exit (range 8) 4658 | -9/Materials | First assault squad dispatched 4870 | -9/Materials | Entered Mines 4905 | -9/Mines | Met a Derelict bent on vengeance 4953 | -9/Mines | Excavation squad dispatched 4953 | -9/Mines | A large section of the Mines collapsed 5203 | -9/Mines | Excavation squad dispatched 5453 | -9/Mines | Excavation squad dispatched 5703 | -9/Mines | Excavation squad dispatched 5758 | -9/Mines | Discovered new exit (range 5) 5759 | -9/Mines | Destroyed 8 combat bots 5767 | -9/Mines | Received a Rocket Launcher from a helpful Derelict 5953 | -9/Mines | Discovered new exit (range 5) 6001 | -9/Mines | Build established: Mutant 6003 | -9/Mines | Learned Materials terminal intel 6110 | -9/Mines | A Derelict revealed a hidden shortcut to a safe place 6486 | -9/Mines | Core integrity fell below 50% 6570 | -9/Mines | Destroyed 8 combat bots 6703 | -9/Mines | Deemed a non-threat by the Exiles lab entrance 6703 | -9/Mines | Discovered new exit (range 5) 6713 | -9/Mines | Entered Exiles 6778 | -9/Exiles | Met 8R-AWN 6812 | -9/Exiles | Met EX-HEX 6877 | -9/Exiles | Met EX-BIN 6917 | -9/Exiles | Aligned with FarCom system 6920 | -9/Exiles | Given EX-Vault access code 6977 | -9/Exiles | Opened EX-Vault 6989 | -9/Exiles | Found Modified TNC 7036 | -9/Exiles | Warned to stay clear of 0b10 Research branches 7075 | -9/Exiles | Exiles lab attacked by MAIN.C 7197 | -9/Exiles | Discovered new exit (range 14) 7228 | -9/Exiles | Left Exiles lab with Modified TNC 7228 | -9/Exiles | Entered Mines 8297 | -8/Mines | Discovered new exit (range 9) 8321 | -8/Mines | Entered Materials 8321 | -8/Materials | Evolved 2 slots: Utility x2 8322 | -8/Materials | Loaded intel: 12 terminal locations 9410 | -8/Materials | Lost 3 parts (1p1u1w) 9454 | -8/Materials | Build established: Scavenger-Mutant 9752 | -8/Materials | Discovered new exit (range 15) 10320 | -8/Materials | Identified exit to Factory 10819 | -8/Materials | Entered Factory 10819 | -7/Factory | Evolved 2 slots: Propulsion x1, Utility x1 10832 | -7/Factory | Discovered new exit (range 10) 10866 | -7/Factory | Identified exit to DSF 10896 | -7/Factory | Identified exit to DSF 10923 | -7/Factory | Identified exit to Factory 10983 | -7/Factory | Sucked down chute 10983 | -7/Factory | Entered Waste 10990 | -7/Waste | Spotted C-40 Crusher 10993 | -7/Waste | Spotted C-40 Crusher 10997 | -7/Waste | Spotted C-40 Crusher 11006 | -7/Waste | Spotted C-40 Crusher 11015 | -7/Waste | Spotted C-40 Crusher 11020 | -7/Waste | Spotted C-40 Crusher 11021 | -7/Waste | Discovered new exit (range 14) 11027 | -7/Waste | Entered Factory 11063 | -7/Factory | Discovered exit to Factory (range 6) 11071 | -7/Factory | Build established: Hacker-Scout 12019 | -7/Factory | Entered another Factory area 12019 | -6/Factory | Evolved 2 slots: Propulsion x1, Utility x1 12059 | -6/Factory | Identified exit to Factory 12073 | -6/Factory | Identified exit to DSF 12152 | -6/Factory | Repaired Adv. Surge Thruster 12279 | -6/Factory | Entered another Factory area 12279 | -5/Factory | Evolved 2 slots: Propulsion x1, Utility x1 12287 | -5/Factory | Identified exit to Factory 12392 | -5/Factory | Discovered new exit (range 11) 12463 | -5/Factory | Entered another Factory area 12463 | -4/Factory | Evolved 2 slots: Propulsion x1, Utility x1 12546 | -4/Factory | Identified exit to Research 12604 | -4/Factory | Entered Research 12604 | -3/Research | Evolved 2 slots: Power x1, Propulsion x1 12609 | -3/Research | Identified exit to DSF 12644 | -3/Research | Entered DSF 12678 | -3/DSF | Additional patrols routed to DSF 12706 | -3/DSF | Discovered new exit (range 16) 12714 | -3/DSF | Entered Research 12714 | -2/Research | Evolved 2 slots: Utility x2 12718 | -2/Research | Identified exit to Access 13094 | -2/Research | Entered Access 13094 | -1/Access | Evolved 2 slots: Utility x2 13102 | -1/Access | Identified exit to Surface 13147 | -1/Access | Build established: Wizard-Ninja 13213 | *** | Escaped! Last Messages --------------- 13180_ Connecting with Fabricator... [Achievement: Prolific Hacker] >>Network(Status) Querying network status... 4 records found: (38,123) - Idle (183,83) - Idle (209,7) - Loaded: Centrium Leg (240,99) - Loaded: C-65 Expert 13192_ W-44 Eye distress signal jammed. 13206_ Penetrated by Slug. 13207_ Slug penetrates Terminal. 13209_ Connecting with Terminal... >>Open(Door) Sealed Barrier opened. 13210_ The Access Shell folds into the floor. 13211_ Penetrated by Slug. 13211_ Impulse Thruster destroyed. 13211_ Slug penetrates Sealed Heavy Doors. 13211_ Slug penetrates Terminal. Map ----- +----------------------------------------------------+ | ?????????????????????????????????""""????????????? | | ????????????????????????????????"""""????????????? | | ?????????????????????????????????"""""???????????? | | ?????????????????????????????????""""????????????? | | ??????????????????????????????????"??????????????? | | ?????????????????????????????????????????????????? | | ?????????????????????????????????????????????????? | | ??????????????????????????????"""?"""????????????? | | ??????????????????????????????"""G"""????????????? | | ?????????????????????????????????????????????????? | | ?????????????????????????????????????????????????? | | ?????????????????????????????????????????????????? | | ?????????????????????????????????????????????????? | | ?????????????????????????????????????????????????? | | ?????????????????????BB????BB????????????????????? | | ?????????????????????BB????BB????????????????????? | | ?????????????????????????????????????????????????? | | ?????????????????????????????????????????????????? | | ?????????????????????????????????????????????????? | | ??????????????????##"????????"##?????????????????? | | ??????????????????##""""""""""##?????????????????? | | ??????????????????## ##?????????????????? | | ??????????? ????## ##?????????????????? | | ??????? ? ????## ##?????????????????? | | ???? ! ##??## "" ##?????????????????? | | ????? ##??## "@ ##?????????????????? | | ???? ##??## ##?????????????????? | | ????? ##??## ##?????????????????? | | """""""" ##?### ###????????????????? | | """""""" ##?### ###????????????????? | | """""""" ##?## ##????????????????? | | """""""" ##?###"" ###????????????????? | | """""""" ##?###"" ###????????????????? | | """""""" w ##??##"" ##?????????????????? | | """""""" ###?##T ##?????????????????? | | """""""" w ###?##"" ##?????????????????? | | "#####"" ####???????????????? | | ######""hh ####???????????????? | | p ???????????? | | u ???????????? | | #######+##############################???????????? | | #### ##########################???????????? | | #?## ##???????????????????????????????????? | | #?## """ ##???????????????????????????????????? | | #?## ""F ##???????????????????????????????????? | | #?## "" ##???????????????????????????????????? | | #?## """ ##???????????????????????????????????? | | #?## """ ##???????????????????????????????????? | | #?## ##???????????????????????????????????? | | #### ##???????????????????????????????????? | +----------------------------------------------------+ Best States ------------- Heat Dissipation 52 Energy Generation 35 Energy Capacity 280 Matter Stores 300 Matter Capacity 300 Sight Range 16 Terrain Scan Density 10 ECM Strength 1 Jamming Range 16 Cloak Strength 4 Armor Coverage 225 Core Shielding 20 Evasion (%) 66 Target Analysis 5 Recoil Reduction 3 Offensive Hacking 50 Defensive Hacking 20 Item Schematics ----------------- None Robot Schematics ------------------ None Fabricated ------------ Nothing Alien Tech Used ----------------- None Achievements -------------- Prolific Hacker Challenges ------------ None Game ------ Seed FissionDroneRefractor Manual? 0 Play Time 01:29:35 Cumulative 99.2 hours Start 2024.09.28 @ 10:38:28 End 2024.09.28 @ 12:13:57 Sessions 7 Manual Loads 0 Difficulty Rogue Special Mode None Game No. 60 Rogue 60 Adventurer 0 Explorer 0 Win Type 0 Total 6 Types 3/1/1/1/0/0/0/0/0 Lore% 43 Gallery% 50 Achievement% 55 Wizard Run 0 Options --------- Layout 1 ASCII 0 Keyboard 0 Movement Arrows Keybinds 0 Fullscreen 1 Font 24/Tamsyn Map View 50x35 Zoom Use 0% Tactical HUD 1 Map Filters NONE Filters NONE Steam 1 RUN: 2ef18c52-0934-4574-8e26-79d0cf90537d